bitfinex-derivatives/quotes_BTCF0:USTF0_20250711
["timestamp","ask_amount","ask_price","bid_price","bid_amount"]
[1752270373281,0.68484625,117630.0,117620.0,0.98793836]
[1752270373481,0.68484625,117630.0,117620.0,0.97465582]
[1752270374181,0.68684625,117630.0,117620.0,0.97465582]
[1752270374680,0.70406312,117630.0,117620.0,0.97465582]
[1752270375482,0.30299547,117630.0,117620.0,0.97465582]
[1752270375682,0.70406312,117630.0,117620.0,0.90793301]
[1752270379987,1.06486312,117630.0,117620.0,0.90793301]
[1752270382083,0.55196557,117630.0,117620.0,1.31482066]
[1752270382385,0.002,117650.0,117640.0,0.1699342]
[1752270382585,0.002,117650.0,117640.0,1.62468185]
[1752270382779,0.002,117650.0,117640.0,1.79468184]
[1752270383490,0.06044934,117660.0,117650.0,0.1699198]
[1752270383685,0.67610004,117670.0,117660.0,0.1699053]
[1752270383879,0.31530004,117670.0,117660.0,0.8619453]
[1752270384386,0.31530004,117670.0,117660.0,0.8599453]
[1752270384889,0.31530004,117670.0,117660.0,1.26101295]
[1752270385490,0.31530004,117670.0,117660.0,0.8599453]
[1752270385491,0.33041238,117670.0,117660.0,0.8599453]
[1752270385791,0.33041238,117670.0,117660.0,1.26101295]
[1752270386187,0.41115238,117670.0,117660.0,0.8599453]
[1752270387087,0.84834003,117670.0,117660.0,1.3599453]
[1752270387288,0.77277835,117670.0,117660.0,1.3599453]
[1752270387489,0.3717107,117670.0,117660.0,1.3599453]
[1752270388093,0.35413334,117670.0,117660.0,1.3599453]
[1752270388288,0.15630168,117680.0,117670.0,0.1698909]
[1752270388596,0.07556168,117680.0,117670.0,0.87931205]
[1752270389088,0.07556168,117680.0,117670.0,1.04927205]
[1752270389290,0.16880862,117690.0,117680.0,0.1698765]
[1752270389481,0.10778635,117690.0,117680.0,1.79252815]
[1752270389685,0.06302386,117690.0,117680.0,1.79252815]
[1752270390094,0.002,117690.0,117680.0,1.79252815]
[1752270390494,0.002,117690.0,117680.0,1.3914605]
[1752270390695,0.002,117690.0,117680.0,1.79252815]
[1752270390894,0.002,117690.0,117680.0,2.29252815]
[1752270391991,0.002,117690.0,117680.0,2.29552815]
[1752270392896,0.00019,117690.0,117680.0,2.36380515]
[1752270393396,0.00019,117690.0,117680.0,2.84984539]
[1752270393597,0.75730646,117720.0,117710.0,0.1698332]
[1752270393790,0.79342646,117720.0,117710.0,0.8576732]
[1752270393986,1.19449411,117720.0,117710.0,0.8576732]
[1752270394191,1.13347025,117720.0,117710.0,0.8576732]
[1752270394592,1.13347025,117720.0,117710.0,0.86505404]
[1752270394997,0.7324026,117720.0,117710.0,0.86505404]
[1752270395294,0.7324026,117720.0,117710.0,1.36505404]
[1752270397494,1.13347025,117720.0,117710.0,1.36505404]
[1752270398895,0.7324026,117720.0,117710.0,1.36505404]
[1752270402904,0.7324026,117720.0,117710.0,1.36605404]
[1752270406606,0.7324026,117720.0,117710.0,1.36705404]
[1752270408207,1.13347025,117720.0,117710.0,0.50938084]
[1752270408404,1.13347025,117720.0,117710.0,1.18646084]
[1752270409509,1.13347025,117720.0,117710.0,0.68594084]
[1752270410506,1.13347025,117720.0,117710.0,0.67856]
[1752270417308,1.5345379,117720.0,117710.0,0.67856]
[1752270418511,0.2309077,117700.0,117690.0,0.0163329]
[1752270418713,1.04736535,117700.0,117690.0,0.6876529]
[1752270419611,1.40816535,117700.0,117690.0,0.6876529]
[1752270419807,1.49317485,117700.0,117680.0,0.00169945]
[1752270420011,1.04737975,117690.0,117680.0,0.67177945]
[1752270420808,1.04737975,117690.0,117680.0,0.00169945]
[1752270421010,1.04737975,117690.0,117680.0,0.67137945]
[1752270421211,1.04737975,117690.0,117680.0,0.67637945]
[1752270422115,1.04737975,117690.0,117680.0,0.67737945]
[1752270422912,1.04737975,117690.0,117680.0,0.00769945]
[1752270423219,1.04737975,117690.0,117660.0,0.0920154]
[1752270423220,0.285541,117670.0,117660.0,0.0920154]
[1752270423410,1.04740865,117670.0,117660.0,0.06922332]
[1752270423610,0.2060154,117660.0,117650.0,0.94613407]
[1752270423810,0.68662305,117660.0,117650.0,0.74567798]
[1752270424113,1.04742305,117660.0,117650.0,0.74567798]
[1752270424616,1.06493189,117660.0,117650.0,0.74567798]
[1752270424816,1.06493189,117660.0,117650.0,0.75067798]
[1752270425015,1.06493189,117660.0,117650.0,0.71231798]
[1752270425212,1.06493189,117660.0,117650.0,0.6895259]
[1752270425414,0.66386424,117660.0,117650.0,0.6895259]
[1752270425717,1.06493189,117660.0,117650.0,0.6895259]
[1752270426115,1.06493189,117660.0,117650.0,0.7278859]
[1752270426815,1.06493189,117660.0,117650.0,0.7288859]
[1752270427017,0.66386424,117660.0,117650.0,0.7288859]
[1752270427210,1.06493189,117660.0,117650.0,0.7288859]
[1752270427410,1.06493189,117660.0,117650.0,0.71252]
[1752270428310,1.06693189,117660.0,117650.0,0.70752]
[1752270428916,1.06693189,117660.0,117650.0,0.70652]
[1752270430507,1.06693189,117660.0,117650.0,0.8764399]
[1752270430711,0.66586424,117660.0,117650.0,0.9016299]
[1752270430918,0.66586424,117660.0,117650.0,0.9026299]
[1752270431617,0.66586424,117660.0,117650.0,0.9016299]
[1752270432313,1.06693189,117660.0,117650.0,0.9016299]
[1752270434108,0.66586424,117660.0,117650.0,0.9016299]
[1752270434417,1.06693189,117660.0,117650.0,0.9016299]
[1752270434917,1.06693189,117660.0,117650.0,0.8764399]
[1752270436615,0.66586424,117660.0,117650.0,0.8764399]
[1752270436915,1.06693189,117660.0,117650.0,0.8764399]
[1752270438621,1.04942305,117660.0,117650.0,0.8764399]
[1752270439923,1.04942305,117660.0,117650.0,0.9000999]
[1752270440223,1.04942305,117660.0,117650.0,0.8764399]
[1752270443426,1.04942305,117660.0,117650.0,0.70652]
[1752270446632,1.04942305,117660.0,117650.0,0.66816]
[1752270450129,0.6483554,117660.0,117650.0,0.66816]
[1752270450330,1.04942305,117660.0,117650.0,0.66816]
[1752270451432,0.6483554,117660.0,117650.0,0.66816]
[1752270451633,1.04942305,117660.0,117650.0,0.66816]
[1752270452631,1.04942305,117660.0,117650.0,0.70442]
[1752270453236,1.11044691,117660.0,117650.0,0.70442]
[1752270453437,1.11044691,117660.0,117650.0,0.8979999]
[1752270453636,1.11044691,117660.0,117650.0,0.72808]
[1752270454434,1.11044691,117660.0,117650.0,0.70442]
[1752270456345,1.04942305,117660.0,117650.0,0.70442]
[1752270456938,1.06734206,117660.0,117650.0,0.70442]
[1752270457143,1.06734206,117660.0,117650.0,0.69346]
[1752270457839,1.14326128,117660.0,117650.0,0.69346]
[1752270461044,1.06734206,117660.0,117650.0,0.69273]
[1752270462146,1.16061806,117660.0,117650.0,0.69273]
[1752270462346,1.08469884,117660.0,117650.0,0.69273]
[1752270462743,1.16061806,117660.0,117650.0,0.69273]
[1752270462944,1.16061806,117660.0,117650.0,0.8848599]
[1752270463149,0.74476055,117660.0,117650.0,1.28692755]
[1752270463444,0.09840515,117660.0,117650.0,1.64772755]
[1752270464048,0.09840515,117660.0,117650.0,2.14772755]
[1752270466342,0.07519515,117660.0,117650.0,2.31771955]
[1752270466744,0.01406579,117660.0,117650.0,2.31771955]
[1752270466944,0.01406579,117660.0,117650.0,2.56771955]
[1752270467551,0.01406579,117660.0,117650.0,2.57071955]
[1752270467847,0.01406579,117660.0,117650.0,2.57271955]
[1752270469248,0.43640476,117690.0,117660.0,0.0424732]
[1752270469447,0.43640476,117690.0,117680.0,0.57094425]
[1752270469848,0.39393566,117690.0,117680.0,0.57094425]
[1752270470048,0.2903372,117690.0,117680.0,0.57094425]
[1752270470553,0.2913372,117690.0,117680.0,0.57094425]
[1752270472649,0.2913372,117690.0,117680.0,1.07094425]
[1752270476653,0.3259672,117690.0,117680.0,1.07094425]
[1752270478855,0.3249672,117690.0,117680.0,1.07094425]
[1752270479149,0.3249672,117690.0,117680.0,1.07194425]
[1752270479453,0.3249672,117690.0,117680.0,1.08998164]
[1752270481357,0.34210579,117690.0,117680.0,1.08998164]
[1752270485256,0.30747579,117690.0,117680.0,1.08998164]
[1752270485456,0.34210579,117690.0,117680.0,1.08998164]
[1752270488159,0.34210579,117690.0,117680.0,1.34491399]
[1752270488365,0.34210579,117690.0,117680.0,1.74598164]
[1752270488959,0.09513859,117690.0,117680.0,1.74598164]
[1752270489165,0.09513859,117690.0,117680.0,2.10678164]
[1752270489766,0.26500079,117690.0,117680.0,2.10678164]
[1752270492168,0.09513859,117690.0,117680.0,2.10678164]
[1752270492763,0.01913859,117690.0,117680.0,2.10678164]
[1752270493564,0.01913859,117690.0,117680.0,1.70571399]
[1752270493769,0.01913859,117690.0,117680.0,2.10678164]
[1752270499071,0.01913859,117690.0,117680.0,2.50784929]
[1752270499272,0.01913859,117690.0,117680.0,2.52112414]
[1752270501873,0.43678,117710.0,117700.0,0.1698478]
[1752270502081,0.43678,117710.0,117700.0,1.22583545]
[1752270502474,0.07598,117710.0,117700.0,0.8247678]
[1752270502673,0.07598,117710.0,117700.0,1.22583545]
[1752270502873,0.07698,117710.0,117700.0,1.22583545]
[1752270503078,0.07698,117710.0,117700.0,1.23372334]
[1752270503576,0.07698,117710.0,117700.0,1.73372334]
[1752270504477,0.07698,117710.0,117700.0,1.75012416]
[1752270504678,0.11384,117710.0,117700.0,1.75012416]
[1752270504878,0.11584,117710.0,117700.0,1.75012416]
[1752270505381,0.11584,117710.0,117700.0,1.81792322]
[1752270505780,0.11584,117710.0,117700.0,1.75012416]
[1752270508285,0.11384,117710.0,117700.0,1.75112416]
[1752270508887,0.2826734,117710.0,117700.0,1.75312416]
[1752270509487,0.11284,117710.0,117700.0,1.75312416]
[1752270509787,0.2826734,117710.0,117700.0,1.75312416]
[1752270510087,0.11284,117710.0,117700.0,1.75312416]
[1752270510286,0.6155459,117720.0,117710.0,0.1698334]
[1752270510287,0.53476936,117720.0,117710.0,0.1698334]
[1752270510486,0.11284,117720.0,117710.0,0.57090105]
[1752270510989,0.11284,117720.0,117710.0,0.4698419]
[1752270511387,0.11284,117720.0,117710.0,0.1698334]
[1752270511688,0.11284,117720.0,117710.0,0.4698419]
[1752270511886,0.11284,117720.0,117710.0,0.9698419]
[1752270512884,0.07598,117720.0,117710.0,1.06982367]
[1752270513284,0.07598,117720.0,117710.0,1.43062367]
[1752270514691,0.07598,117720.0,117710.0,1.06982367]
[1752270517789,0.11284,117720.0,117710.0,1.06982367]
[1752270520190,0.282659,117720.0,117710.0,1.06982367]
[1752270520590,0.11284,117720.0,117710.0,1.06982367]
[1752270522395,0.13002898,117720.0,117710.0,1.06982367]
[1752270529405,0.29984798,117720.0,117710.0,1.06982367]
[1752270534801,0.29984798,117720.0,117710.0,0.96985734]
[1752270557922,0.29984798,117720.0,117710.0,1.26988128]
[1752270562927,0.13002898,117720.0,117710.0,1.26988128]
[1752270563127,0.13002898,117720.0,117710.0,0.96985734]
[1752270565928,0.13002898,117720.0,117710.0,1.63068128]
[1752270566227,0.09316898,117720.0,117710.0,1.63068128]
[1752270573638,0.09316898,117720.0,117710.0,1.0306334]
[1752270573839,0.09316898,117720.0,117710.0,1.63068128]
[1752270577636,0.26298818,117720.0,117710.0,1.0306334]
[1752270577831,0.26298818,117720.0,117710.0,1.97697734]
[1752270579942,0.09316898,117720.0,117710.0,1.97697734]
[1752270580240,0.26298818,117720.0,117710.0,1.97697734]
[1752270581735,0.26298818,117720.0,117710.0,1.97701734]
[1752270585539,0.09316898,117720.0,117710.0,1.97701734]
[1752270587346,0.09316898,117720.0,117710.0,1.61621734]
[1752270587538,0.26298808,117720.0,117710.0,1.61621734]
[1752270588247,0.29765808,117720.0,117710.0,1.61621734]
[1752270597649,0.29765808,117720.0,117710.0,1.3161934]
[1752270597852,0.89770596,117720.0,117710.0,1.3161934]
[1752270598150,1.01961138,117720.0,117710.0,1.14636]
[1752270598350,1.01961138,117720.0,117710.0,1.44638394]
[1752270598750,1.01961138,117720.0,117710.0,1.14636]
[1752270599250,1.31963532,117720.0,117710.0,1.14636]
[1752270599550,1.01961138,117720.0,117710.0,1.14636]
[1752270600254,1.31963532,117720.0,117710.0,0.50004]
[1752270600554,1.31963532,117720.0,117710.0,1.14352]
[1752270601755,0.71958744,117720.0,117710.0,1.14352]
[1752270601958,1.31963532,117720.0,117710.0,1.14352]
[1752270603359,1.31963532,117720.0,117710.0,0.64352]
[1752270603657,1.31963532,117720.0,117710.0,0.8133535]
[1752270604948,1.25850596,117720.0,117710.0,0.8133535]
[1752270605955,1.25850596,117720.0,117710.0,0.64352]
[1752270606759,1.25850596,117720.0,117710.0,0.8133535]
[1752270607259,1.25850596,117720.0,117710.0,0.64352]
[1752270609561,0.65845808,117720.0,117710.0,0.94354394]
[1752270609859,1.25850596,117720.0,117710.0,0.94354394]
[1752270610053,1.31963532,117720.0,117710.0,0.94354394]
[1752270610954,1.31963532,117720.0,117710.0,0.64352]
[1752270615362,1.31963532,117720.0,117710.0,4e-05]
[1752270615551,1.25850596,117720.0,117710.0,0.64212]
[1752270617556,1.31963532,117720.0,117710.0,0.64212]
[1752270622761,0.71958744,117720.0,117710.0,0.64212]
[1752270622964,1.31963532,117720.0,117710.0,0.64212]
[1752270623265,1.25850596,117720.0,117710.0,0.64212]
[1752270625466,1.31956527,117720.0,117710.0,0.64212]
[1752270627267,1.26170622,117720.0,117710.0,0.64212]
[1752270630563,1.33762544,117720.0,117710.0,0.64212]
[1752270630866,1.50752944,117720.0,117710.0,0.64212]
[1752270631066,1.50752944,117720.0,117710.0,0.59624162]
[1752270633369,0.90748156,117720.0,117710.0,0.59624162]
[1752270633563,1.50752944,117720.0,117710.0,0.59624162]
[1752270634764,1.33762544,117720.0,117710.0,0.59624162]
[1752270635968,0.73757756,117720.0,117710.0,0.59624162]
[1752270636267,1.33762544,117720.0,117710.0,0.59624162]
[1752270637270,1.33762544,117720.0,117700.0,0.64812789]
[1752270637271,0.1698336,117710.0,117700.0,0.64812789]
[1752270637468,1.01832764,117710.0,117700.0,0.64024]
[1752270641069,1.31835158,117710.0,117700.0,0.64024]
[1752270641271,1.01832764,117710.0,117700.0,0.64844201]
[1752270641573,1.01832764,117710.0,117700.0,0.65044201]
[1752270641771,1.01832764,117710.0,117700.0,0.65144201]
[1752270642265,1.01832764,117710.0,117700.0,0.64944201]
[1752270642471,1.01932764,117710.0,117700.0,0.64944201]
[1752270642775,1.02049645,117710.0,117700.0,0.64944201]
[1752270642974,1.02049645,117710.0,117700.0,0.64948201]
[1752270643576,1.02049645,117710.0,117700.0,0.64848201]
[1752270643776,1.02149645,117710.0,117700.0,0.64848201]
[1752270646481,0.96044559,117710.0,117700.0,0.64848201]
[1752270650178,1.03636481,117710.0,117700.0,0.64848201]
[1752270652387,1.33638875,117710.0,117700.0,0.00824201]
[1752270652586,1.33638875,117710.0,117680.0,1.76539467]
[1752270652587,0.2745024,117690.0,117680.0,1.19226277]
[1752270652888,0.95688439,117690.0,117680.0,1.83082277]
[1752270653386,0.95688439,117690.0,117680.0,0.65622277]
[1752270653582,0.95688439,117690.0,117680.0,0.6641447]
[1752270653788,0.95688439,117690.0,117680.0,1.1651447]
[1752270653987,0.95688439,117690.0,117680.0,1.1671447]
[1752270653988,1.37881583,117690.0,117680.0,1.1671447]
[1752270654989,1.37881583,117690.0,117680.0,0.6671447]
[1752270655989,1.37881583,117690.0,117680.0,0.6661447]
[1752270656185,1.67883977,117690.0,117680.0,0.6661447]
[1752270656577,1.69673576,117690.0,117680.0,0.65018138]
[1752270656779,1.69673576,117690.0,117680.0,0.64918138]
[1752270657486,0.97513576,117690.0,117680.0,0.64918138]
[1752270657693,1.69673576,117690.0,117680.0,0.64918138]
[1752270658292,1.39671182,117690.0,117680.0,0.64918138]
[1752270658893,1.69673576,117690.0,117680.0,0.64918138]
[1752270659996,1.69673576,117690.0,117680.0,0.00269945]
[1752270660492,1.63560432,117690.0,117680.0,0.00269945]
[1752270660885,0.2745169,117680.0,117670.0,0.00820304]
[1752270661083,0.2745313,117670.0,117660.0,0.8077852]
[1752270661287,0.95574448,117670.0,117660.0,0.8077852]
[1752270661484,0.95574448,117670.0,117660.0,0.63788]
[1752270661889,0.95691329,117670.0,117660.0,1.13788]
[1752270662085,0.95691329,117670.0,117660.0,0.5]
[1752270662296,1.25693723,117670.0,117660.0,0.5]
[1752270663485,1.25793723,117670.0,117660.0,0.5]
[1752270663693,1.31891961,117670.0,117660.0,0.5]
[1752270663891,0.1699058,117660.0,117650.0,0.64564387]
[1752270664091,1.20771292,117660.0,117650.0,0.64564387]
[1752270664290,1.25578292,117660.0,117650.0,0.63772]
[1752270664897,1.25695173,117660.0,117650.0,0.63772]
[1752270665091,1.31793411,117660.0,117650.0,0.63772]
[1752270666196,1.31793411,117660.0,117650.0,0.63872]
[1752270666595,1.31893411,117660.0,117650.0,0.63872]
[1752270666796,1.31893411,117660.0,117650.0,0.63772]
[1752270668004,1.31893411,117660.0,117640.0,0.01001107]
[1752270668005,0.2745602,117650.0,117640.0,0.01001107]
[1752270668191,1.33437417,117650.0,117640.0,0.64729107]
[1752270668995,1.33554298,117650.0,117640.0,0.64729107]
[1752270669190,1.40364784,117650.0,117640.0,0.64729107]
[1752270669694,1.40364784,117650.0,117640.0,0.64829107]
[1752270671103,1.34266546,117650.0,117640.0,0.64829107]
[1752270672703,1.40364784,117650.0,117640.0,0.64829107]
[1752270674204,1.40364784,117650.0,117640.0,0.64729107]
[1752270675005,1.34366546,117650.0,117640.0,0.64729107]
[1752270675405,1.34366546,117650.0,117640.0,0.63898003]
[1752270675603,1.34266546,117650.0,117640.0,0.63898003]
[1752270675803,1.34366546,117650.0,117640.0,0.63898003]
[1752270676506,1.40464784,117650.0,117640.0,0.63898003]
[1752270676808,1.40464784,117650.0,117640.0,0.00170003]
[1752270677805,1.6436894,117650.0,117640.0,3e-08]
[1752270678400,1.34366546,117650.0,117640.0,3e-08]
[1752270678606,1.40464784,117650.0,117640.0,3e-08]
[1752270678808,1.70467178,117650.0,117640.0,3e-08]
[1752270679007,0.87220688,117630.0,117620.0,0.64460228]
[1752270679206,1.31417218,117630.0,117620.0,0.64460228]
[1752270679406,1.61419612,117630.0,117620.0,0.64460228]
[1752270679606,1.31417218,117630.0,117620.0,0.64460228]
[1752270680107,1.31534099,117630.0,117620.0,0.64460228]
[1752270680911,1.41610549,117630.0,117620.0,0.64460228]
[1752270681711,1.41610549,117630.0,117620.0,0.64760228]
[1752270682308,1.47708787,117630.0,117620.0,0.64760228]
[1752270685914,1.47708787,117630.0,117620.0,0.64560228]
[1752270686103,1.47708787,117630.0,117620.0,0.64660228]
[1752270686415,1.47708787,117630.0,117620.0,0.002]
[1752270686709,1.49302471,117630.0,117620.0,0.001]
[1752270686913,1.49302471,117630.0,117620.0,1e-07]
[1752270687512,0.225508,117610.0,117600.0,0.63758061]
[1752270687817,1.05416568,117610.0,117600.0,0.63758061]
[1752270688014,1.41613449,117610.0,117600.0,0.63758061]
[1752270688215,1.47694568,117610.0,117600.0,0.64576821]
[1752270688914,1.41613449,117610.0,117600.0,0.64676821]
[1752270689111,1.47694568,117610.0,117600.0,0.64676821]
[1752270690311,1.47694568,117610.0,117600.0,0.01088821]
[1752270692520,1.49205371,117610.0,117600.0,0.01088821]
[1752270692715,1.49205371,117610.0,117600.0,0.00270061]
[1752270693122,1.41613449,117610.0,117600.0,0.00270061]
[1752270693322,1.49205371,117610.0,117600.0,0.00270061]
[1752270697515,1.49305371,117610.0,117600.0,0.00270061]
[1752270698020,2.12825371,117610.0,117600.0,0.00270061]
[1752270698230,2.12825371,117610.0,117600.0,0.00170061]
[1752270698519,2.12925371,117610.0,117600.0,0.00170061]
[1752270698721,2.14679335,117610.0,117600.0,0.00170061]
[1752270698922,2.14579335,117610.0,117600.0,0.00170061]
[1752270699118,2.14679335,117610.0,117600.0,0.00170061]
[1752270700019,2.14659335,117610.0,117600.0,0.00170061]
[1752270700219,2.14679335,117610.0,117600.0,0.00190061]
[1752270702427,2.21512813,117610.0,117600.0,0.00190061]
[1752270702827,2.41585473,117610.0,117600.0,0.00190061]
[1752270703023,1.48009721,117610.0,117600.0,0.00190061]
[1752270703227,2.11485721,117610.0,117600.0,0.00190061]
[1752270703627,2.41561473,117610.0,117600.0,0.00190061]
[1752270703828,2.33969551,117610.0,117600.0,0.00190061]
[1752270704128,1.16425629,117610.0,117600.0,0.00190061]
[1752270704329,1.76577133,117610.0,117600.0,0.00190061]
[1752270704530,1.40417799,117610.0,117600.0,0.00190061]
[1752270704831,1.50435427,117610.0,117600.0,0.00190061]
[1752270705130,1.56519131,117610.0,117600.0,0.00190061]
[1752270705430,1.58027349,117610.0,117600.0,0.00190061]
[1752270706228,1.50435427,117610.0,117600.0,0.00190061]
[1752270706429,1.58027349,117610.0,117600.0,0.00190061]
[1752270707131,1.50435427,117610.0,117600.0,0.00190061]
[1752270707322,1.58027349,117610.0,117600.0,0.00190061]
[1752270708232,1.50435427,117610.0,117600.0,0.00190061]
[1752270708436,1.58027349,117610.0,117600.0,0.00190061]
[1752270709132,1.50435427,117610.0,117600.0,0.00190061]
[1752270709326,1.56523813,117610.0,117600.0,0.00190061]
[1752270712438,1.50435427,117610.0,117600.0,0.00190061]
[1752270713239,1.56526091,117610.0,117600.0,0.00190061]
[1752270713439,1.58027349,117610.0,117600.0,0.00190061]
[1752270715935,1.17933969,117610.0,117600.0,0.00190061]
[1752270716240,1.50435427,117610.0,117600.0,0.00190061]
[1752270716441,1.58027349,117610.0,117600.0,0.00190061]
[1752270720538,0.1699924,117600.0,117590.0,0.00800639]
[1752270720747,0.2508368,117590.0,117580.0,0.2125253]
[1752270721042,0.69775865,117590.0,117580.0,0.2125253]
[1752270721243,0.69775865,117590.0,117580.0,0.72084673]
[1752270722346,0.69775865,117590.0,117580.0,0.72284673]
[1752270722537,0.69775865,117590.0,117580.0,0.72384673]
[1752270724945,0.29682485,117590.0,117580.0,0.72384673]
[1752270725146,0.69775865,117590.0,117580.0,0.72384673]
[1752270725547,0.69775865,117590.0,117580.0,0.68134173]
[1752270726846,0.59755752,117590.0,117580.0,0.68134173]
[1752270727247,0.59755752,117590.0,117580.0,0.9820744]
[1752270729047,0.59755752,117590.0,117580.0,0.68134173]
[1752270729747,0.59755752,117590.0,117580.0,0.9820744]
[1752270731251,0.59755752,117590.0,117580.0,0.68134173]
[1752270731446,0.59755752,117590.0,117580.0,0.9820744]
[1752270732757,0.26581485,117590.0,117580.0,0.9820744]
[1752270732948,0.26581485,117590.0,117580.0,1.3428744]
[1752270733143,0.26593885,117590.0,117580.0,1.3428744]
[1752270733347,0.56667152,117590.0,117580.0,1.3428744]
[1752270735957,0.59768152,117590.0,117580.0,1.3428744]
[1752270741858,0.29694885,117590.0,117580.0,1.3428744]
[1752270742157,0.59768152,117590.0,117580.0,1.3430744]
[1752270743760,0.29694885,117590.0,117580.0,1.3430744]
[1752270744060,0.59768152,117590.0,117580.0,1.3430744]
[1752270748864,0.59768152,117590.0,117580.0,1.3426744]
[1752270752565,0.59768152,117590.0,117580.0,0.9818744]
[1752270754558,0.26593885,117590.0,117580.0,1.45269507]
[1752270754760,0.19168885,117590.0,117580.0,1.81349507]
[1752270755165,0.02168205,117590.0,117580.0,1.81349507]
[1752270755762,0.32381365,117610.0,117600.0,0.1699924]
[1752270755960,0.34304455,117610.0,117600.0,1.76237774]
[1752270756161,0.28206954,117610.0,117600.0,1.76237774]
[1752270756363,0.20875954,117610.0,117600.0,1.76237774]
[1752270757164,0.03878164,117610.0,117600.0,1.76237774]
[1752270757363,0.20875954,117610.0,117600.0,1.76237774]
[1752270757564,0.03878164,117610.0,117600.0,1.76237774]
[1752270757764,0.20875954,117610.0,117600.0,2.26237774]
[1752270757962,0.021242,117610.0,117600.0,2.73317441]
[1752270758161,0.021242,117610.0,117600.0,2.43244174]
[1752270758363,0.021242,117610.0,117600.0,3.61016174]
[1752270758558,0.75002131,117630.0,117620.0,0.1699635]
[1752270758765,0.75002131,117630.0,117620.0,1.10053617]
[1752270758958,0.75002131,117630.0,117620.0,1.2004481]
[1752270759163,0.6890463,117630.0,117620.0,1.2004481]
[1752270759468,0.6890463,117630.0,117620.0,1.7004481]
[1752270759666,0.212446,117630.0,117620.0,1.71672416]
[1752270759865,0.285756,117630.0,117620.0,1.71672416]
[1752270761571,0.285756,117630.0,117620.0,1.31607956]
[1752270761760,0.285756,117630.0,117620.0,1.71672416]
[1752270761967,0.285756,117630.0,117620.0,1.31607956]
[1752270762166,0.285756,117630.0,117620.0,1.71672416]
[1752270762969,0.318516,117630.0,117620.0,1.71672416]
[1752270763968,0.318516,117630.0,117620.0,2.07752416]
[1752270768564,0.8889059,117640.0,117630.0,0.2549179]
[1752270768565,0.04584,117640.0,117630.0,0.2549179]
[1752270768765,0.06097501,117660.0,117650.0,0.2118801]
[1752270768971,0.70960651,117670.0,117660.0,0.2445157]
[1752270769171,0.09395501,117680.0,117670.0,0.1698913]
[1752270769370,0.06097501,117680.0,117670.0,1.34081986]
[1752270769569,0.3686532,117690.0,117680.0,0.2016868]
[1752270769770,0.22274549,117690.0,117680.0,0.6441314]
[1752270769972,0.05287599,117690.0,117680.0,0.6421314]
[1752270770167,0.01989599,117690.0,117680.0,0.6421314]
[1752270770475,0.01989599,117690.0,117680.0,0.65053518]
[1752270770669,0.03875716,117690.0,117680.0,0.64853518]
[1752270770865,0.10756716,117690.0,117680.0,0.64853518]
[1752270771475,0.10756716,117690.0,117680.0,0.24589058]
[1752270771676,0.10756716,117690.0,117680.0,0.64653518]
[1752270772180,0.11056716,117690.0,117680.0,0.64653518]
[1752270772376,0.28042956,117690.0,117680.0,0.64653518]
[1752270772677,0.28342956,117690.0,117680.0,0.64653518]
[1752270773974,0.26553357,117690.0,117680.0,0.66279563]
[1752270774175,0.26553357,117690.0,117680.0,1.16279563]
[1752270774678,0.29851357,117690.0,117680.0,1.16279563]
[1752270774872,0.29807733,117690.0,117680.0,1.16279563]
[1752270776381,0.69872193,117690.0,117680.0,0.71935103]
[1752270776976,0.29807733,117690.0,117680.0,0.71935103]
[1752270780586,0.29807733,117690.0,117680.0,0.75200103]
[1752270784588,0.29807733,117690.0,117680.0,0.76215103]
[1752270788390,0.29807733,117690.0,117680.0,0.74589058]
[1752270797396,0.35905234,117690.0,117680.0,0.74589058]
[1752270797891,0.35905234,117690.0,117680.0,0.73574058]
[1752270798992,0.35905234,117690.0,117680.0,0.70309058]
[1752270799195,0.35905234,117690.0,117680.0,0.73574058]
[1752270799394,0.35905234,117690.0,117680.0,0.67128058]
[1752270799696,0.35905234,117690.0,117680.0,0.70429058]
[1752270800294,0.35605234,117690.0,117680.0,0.70429058]
[1752270800497,0.35305234,117690.0,117680.0,0.73694058]
[1752270800698,0.35316671,117690.0,117680.0,0.73694058]
[1752270801701,0.35316671,117690.0,117680.0,0.70429058]
[1752270802897,0.35316671,117690.0,117680.0,0.73694058]
[1752270803596,0.2921917,117690.0,117680.0,0.73694058]
[1752270803901,0.36811092,117690.0,117680.0,0.73694058]
[1752270805099,0.6529917,117690.0,117680.0,0.73694058]
[1752270805499,0.6529917,117690.0,117680.0,0.54141378]
[1752270805694,1.0536363,117690.0,117680.0,0.71129088]
[1752270805899,1.0536363,117690.0,117680.0,0.67828088]
[1752270806598,1.0536363,117690.0,117680.0,0.71129088]
[1752270806799,1.0536363,117690.0,117680.0,0.50840378]
[1752270807805,1.0536363,117690.0,117680.0,0.00840378]
[1752270808006,0.1999871,117680.0,117670.0,0.91454129]
[1752270808208,0.70435786,117680.0,117670.0,0.91454129]
[1752270808409,0.75131786,117680.0,117670.0,0.91454129]
[1752270808603,0.75248697,117680.0,117670.0,0.91454129]
[1752270809504,0.75248697,117680.0,117670.0,1.41454129]
[1752270809705,0.75248697,117680.0,117670.0,1.41554129]
[1752270810408,0.35184237,117680.0,117670.0,1.42397909]
[1752270810606,0.35184237,117680.0,117670.0,1.25408759]
[1752270811409,0.75248697,117680.0,117670.0,1.25408759]
[1752270811609,0.75238696,117680.0,117670.0,1.22107759]
[1752270812207,0.75238696,117680.0,117670.0,1.22207759]
[1752270815406,0.6913001,117680.0,117670.0,1.22207759]
[1752270816812,0.8913142,117680.0,117670.0,1.22207759]
[1752270818315,1.2521142,117680.0,117670.0,1.22207759]
[1752270818509,1.2521142,117680.0,117670.0,0.72207759]
[1752270818710,1.2521142,117680.0,117670.0,0.75508759]
[1752270818911,1.2521142,117680.0,117670.0,0.73911896]
[1752270821018,1.2521142,117680.0,117670.0,0.639115]
[1752270821719,1.2521142,117680.0,117670.0,0.63068]
[1752270821920,1.31924714,117680.0,117670.0,0.63068]
[1752270822121,1.61957649,117680.0,117670.0,0.63068]
[1752270822317,1.68066335,117680.0,117670.0,0.63068]
[1752270822517,1.380334,117680.0,117670.0,0.63068]
[1752270823317,1.85062335,117680.0,117670.0,0.63068]
[1752270823517,1.85062335,117680.0,117650.0,0.06889352]
[1752270823518,0.2710899,117650.0,117640.0,1.75042353]
[1752270823821,0.2710899,117650.0,117640.0,1.80854438]
[1752270823822,0.59102765,117650.0,117640.0,1.80854438]
[1752270824714,1.252157,117650.0,117640.0,0.63302438]
[1752270824920,1.05220109,117650.0,117640.0,0.63602438]
[1752270825119,1.05220109,117650.0,117640.0,0.62782003]
[1752270826026,1.05220109,117650.0,117640.0,0.62482003]
[1752270827620,1.05220109,117650.0,117640.0,0.00170003]
[1752270828928,1.11328795,117650.0,117640.0,0.00170003]
[1752270830029,1.12151786,117650.0,117640.0,0.00170003]
[1752270830922,1.29151786,117650.0,117640.0,0.00170003]
[1752270831122,0.2736486,117630.0,117620.0,0.63887606]